fUSD/lending_fUSD_20240913
["ID","MTS","AMOUNT","RATE_DAILY","PERIOD"]
[337906618,1726203040062,-2873.23,0.00012965,2]
[337906620,1726203040071,-5384.95,0.00012965,2]
[337906622,1726203040080,-1377.06,0.00012965,2]
[337906624,1726203040088,-4492.36,0.00012965,2]
[337906625,1726203040098,-5972.52,0.00012965,2]
[337906627,1726203040107,-793.58,0.00012965,2]
[337906629,1726203040116,-2744.5,0.00012965,2]
[337906631,1726203040125,-6543.63,0.00012965,2]
[337906633,1726203040134,-3828.17,0.00012965,2]
[337906635,1726203040143,-603.53,0.00012965,2]
[337906636,1726203040152,-5249.13,0.00012965,2]
[337906638,1726203040161,-699.16,0.00012965,2]
[337906640,1726203040170,-21467.05,0.00012965,2]
[337906642,1726203040179,-852.95,0.00012965,2]
[337906644,1726203040188,-607.43,0.00012965,2]
[337906646,1726203040197,-3368.44,0.00012965,2]
[337906648,1726203040207,-8372.13,0.00012965,2]
[337906650,1726203040216,-1365.28,0.00012965,2]
[337906652,1726203040226,-7227.17,0.00012965,2]
[337906654,1726203040235,-4075.52,0.00012965,2]
[337906656,1726203040244,-56541.34,0.00012965,2]
[337906657,1726203040253,-9376.67,0.00012965,2]
[337906659,1726203040262,-11900.77,0.00012965,2]
[337906661,1726203040271,-500.0,0.00012965,2]
[337906663,1726203040280,-13218.27,0.00012965,2]
[337906665,1726203040289,-4860.11,0.00012965,2]
[337906667,1726203040298,-3373.16,0.00012965,2]
[337906669,1726203040307,-3407.74,0.00012965,2]
[337906671,1726203040316,-3197.95,0.00012965,2]
[337906673,1726203040325,-1383.61,0.00012965,2]
[337906674,1726203040334,-1966.14,0.00012965,2]
[337906676,1726203040343,-500.0,0.00012965,2]
[337906678,1726203040352,-8108.65,0.00012965,2]
[337906680,1726203040362,-3216.99,0.00012965,2]
[337906682,1726203040371,-4353.67,0.00012965,2]
[337906684,1726203040380,-10606.4,0.00012965,2]
[337906686,1726203040389,-2691.33,0.00012965,2]
[337906688,1726203040399,-12108.98,0.00012965,2]
[337906690,1726203040408,-500.0,0.00012965,2]
[337906692,1726203040418,-3077.28,0.00012965,2]
[337906693,1726203040426,-500.0,0.00012965,2]
[337906695,1726203040437,-992.9,0.00012965,2]
[337906697,1726203040448,-2801.93,0.00012965,2]
[337906699,1726203040457,-3412.99,0.00012965,2]
[337906701,1726203040466,-500.0,0.00012965,2]
[337906703,1726203040475,-4303.39,0.00012965,2]
[337906705,1726203040484,-7455.0,0.00012965,2]
[337906707,1726203040494,-742.49,0.00012965,2]
[337906709,1726203040503,-3922.15,0.00012965,2]
[337906711,1726203040512,-523.76,0.00012966,2]
[337906713,1726203040522,-1650.41,0.00012966,2]
[337906715,1726203040531,-500.0,0.00012966,2]
[337906717,1726203040540,-1050.04,0.00012966,2]
[337906719,1726203040550,-683.86,0.00012966,2]
[337906721,1726203040559,-500.0,0.00012966,2]
[337906723,1726203040568,-549.26,0.00012966,2]
[337906725,1726203040578,-500.0,0.00012966,2]
[337906727,1726203040588,-500.0,0.00012966,2]
[337906729,1726203040597,-2656.6,0.00012966,2]
[337906731,1726203040606,-636.64,0.00012966,2]
[337906732,1726203040616,-594.92,0.00012966,2]
[337906734,1726203040625,-1747.58,0.00012966,2]
[337906736,1726203040634,-1804.23,0.00012966,2]
[337906738,1726203040644,-1212.92,0.00012966,2]
[337906740,1726203040654,-3317.94,0.00012966,2]
[337906742,1726203040663,-4849.53,0.00012966,2]
[337906744,1726203040672,-500.0,0.00012966,2]
[337906746,1726203040682,-3006.67,0.00012966,2]
[337906748,1726203040692,-501.44890206,0.00012966,2]
[337906750,1726203040701,-2285.76,0.00012966,2]
[337906752,1726203040711,-500.0,0.00012966,2]
[337906754,1726203040720,-500.0,0.00012966,2]
[337906756,1726203040729,-5168.72,0.00012966,2]
[337906757,1726203040739,-500.0,0.00012966,2]
[337906759,1726203040748,-799.16,0.00012966,2]
[337906761,1726203040758,-1681.06,0.00012966,2]
[337906763,1726203040767,-2615.85,0.00012966,2]
[337906765,1726203040777,-537.79,0.00012966,2]
[337906767,1726203040786,-1290.2,0.00012966,2]
[337906769,1726203040795,-500.0,0.00012966,2]
[337906771,1726203040804,-715.3,0.00012966,2]
[337906773,1726203040814,-1376.5,0.00012966,2]
[337906774,1726203040823,-534.31,0.00012966,2]
[337906775,1726203040832,-3502.73,0.00012966,2]
[337906776,1726203040841,-500.0,0.00012966,2]
[337906777,1726203040850,-658.51,0.00012966,2]
[337906778,1726203040859,-3054.28,0.00012966,2]
[337906779,1726203040869,-5122.45,0.00012966,2]
[337906780,1726203040878,-1816.71,0.00012966,2]
[337906781,1726203040887,-500.0,0.00012966,2]
[337906782,1726203040896,-3527.03,0.00012966,2]
[337906783,1726203040905,-1250.42,0.00012966,2]
[337906784,1726203040914,-2699.9,0.00012966,2]
[337906785,1726203040924,-6065.05,0.00012966,2]
[337906786,1726203040934,-1219.9,0.00012966,2]
[337906787,1726203040943,-500.0,0.00012966,2]
[337906788,1726203040953,-3076.34,0.00012966,2]
[337906789,1726203040963,-500.0,0.00012966,2]
[337906790,1726203040972,-500.0,0.00012966,2]
[337906792,1726203040982,-64082.15,0.00012966,2]
[337906794,1726203040991,-625.69,0.00012966,2]
[337906796,1726203041001,-661.79,0.00012966,2]
[337906798,1726203041010,-3148.41,0.00012966,2]
[337906800,1726203041020,-2395.24,0.00012966,2]
[337906802,1726203041030,-1346.34,0.00012966,2]
[337906803,1726203041040,-3270.18,0.00012966,2]
[337906805,1726203041050,-1939.68,0.00012966,2]
[337906807,1726203041059,-5442.07,0.00012966,2]
[337906809,1726203041068,-500.0,0.00012966,2]
[337906811,1726203041077,-4238.57,0.00012966,2]
[337906813,1726203041086,-5326.23,0.00012966,2]
[337906815,1726203041095,-6406.43,0.00012966,2]
[337906817,1726203041105,-1404.03,0.00012966,2]
[337906819,1726203041117,-500.0,0.00012966,2]
[337906821,1726203041127,-1123.59,0.00012966,2]
[337906823,1726203041136,-2216.3,0.00012966,2]
[337906825,1726203041145,-3086.44,0.00012966,2]
[337906827,1726203041155,-10514.65,0.00012966,2]
[337906829,1726203041166,-42663.19,0.00012966,2]
[337906831,1726203041177,-500.0,0.00012966,2]
[337906833,1726203041188,-7223.96,0.00012966,2]
[337906835,1726203041197,-629.95,0.00012966,2]
[337906837,1726203041210,-1297.03,0.00012966,2]
[337906839,1726203041220,-16514.34,0.00012966,2]
[337906841,1726203041229,-500.0,0.00012966,2]
[337906843,1726203041238,-3081.15,0.00012966,2]
[337906845,1726203041248,-500.0,0.00012966,2]
[337906847,1726203041257,-4841.44,0.00012966,2]
[337906849,1726203041266,-491.03681934,0.00012966,2]
[337906851,1726203041276,-716.4,0.00012967,2]
[337906852,1726203041284,-500.0,0.00012967,2]
[337906854,1726203041294,-500.0,0.00012967,2]
[337906856,1726203041304,-500.0,0.00012967,2]
[337906858,1726203041312,-500.0,0.00012967,2]
[337906860,1726203041322,-500.0,0.00012967,2]
[337906862,1726203041331,-500.0,0.00012967,2]
[337906864,1726203041340,-500.0,0.00012967,2]
[337906866,1726203041349,-2445.02,0.00012967,2]
[337906868,1726203041358,-500.0,0.00012967,2]
[337906869,1726203041367,-500.0,0.00012967,2]
[337906871,1726203041377,-702.27,0.00012967,2]
[337906873,1726203041386,-2712.81,0.00012967,2]
[337906875,1726203041395,-854.25,0.00012967,2]
[337906877,1726203041404,-500.0,0.00012967,2]
[337906879,1726203041412,-500.0,0.00012967,2]
[337906881,1726203041422,-500.0,0.00012967,2]
[337906882,1726203041432,-500.0,0.00012967,2]
[337906884,1726203041441,-523.78,0.00012967,2]
[337906886,1726203041453,-1957.76,0.00012967,2]
[337906888,1726203041462,-500.0,0.00012967,2]
[337906890,1726203041471,-500.0,0.00012967,2]
[337906892,1726203041480,-591.30563651,0.00012967,2]
[337906894,1726203041490,-500.0,0.00012967,2]
[337906896,1726203041499,-623.22,0.00012967,2]
[337906898,1726203041509,-500.0,0.00012967,2]
[337906900,1726203041518,-1812.1,0.00012967,2]
[337906902,1726203041527,-500.0,0.00012967,2]
[337906904,1726203041536,-651.51,0.00012967,2]
[337906906,1726203041545,-866.49,0.00012967,2]
[337906907,1726203041554,-537.07,0.00012967,2]
[337906909,1726203041563,-500.0,0.00012967,2]
[337906911,1726203041573,-500.0,0.00012967,2]
[337906913,1726203041582,-1073.82,0.00012967,2]
[337906915,1726203041592,-500.0,0.00012967,2]
[337906917,1726203041601,-1601.51,0.00012967,2]
[337906919,1726203041611,-262.87343174,0.00012967,2]
[337906921,1726203041621,-508.75,0.00012967,2]
[337906923,1726203041631,-3493.65,0.00012967,2]
[337906925,1726203041641,-599.9,0.00012967,2]
[337906927,1726203041650,-2586.04,0.00012967,2]
[337906929,1726203041660,-3472.01,0.00012967,2]
[337906931,1726203041669,-4562.62,0.00012967,2]
[337906933,1726203041678,-4491.51,0.00012967,2]
[337906935,1726203041696,-1607.79,0.00012967,2]
[337906937,1726203041705,-6381.13,0.00012967,2]
[337906939,1726203041714,-2368.86,0.00012967,2]
[337906941,1726203041723,-500.0,0.00012967,2]
[337906942,1726203041732,-500.0,0.00012967,2]
[337906944,1726203041741,-3201.17,0.00012967,2]
[337906946,1726203041751,-3116.87,0.00012967,2]
[337906948,1726203041760,-500.0,0.00012967,2]
[337906950,1726203041769,-2087.65,0.00012967,2]
[337906953,1726203041779,-3121.1,0.00012967,2]
[337906954,1726203041788,-3103.36,0.00012967,2]
[337906956,1726203041798,-500.0,0.00012967,2]
[337906958,1726203041807,-2305.1,0.00012967,2]
[337906960,1726203041816,-2258.95,0.00012967,2]
[337906962,1726203041825,-530.54,0.00012967,2]
[337906964,1726203041835,-2512.77,0.00012967,2]
[337906966,1726203041844,-5921.4,0.00012967,2]
[337906968,1726203041854,-1017.11,0.00012967,2]
[337906970,1726203041863,-2265.3,0.00012967,2]
[337906972,1726203041872,-4302.15,0.00012967,2]
[337906974,1726203041881,-1417.1,0.00012967,2]
[337906976,1726203041890,-1939.98,0.00012967,2]
[337906977,1726203041899,-3426.08,0.00012967,2]
[337906979,1726203041908,-500.0,0.00012967,2]
[337906981,1726203041917,-3128.96,0.00012967,2]
[337906983,1726203041926,-2511.83,0.00012967,2]
[337906985,1726203041937,-500.0,0.00012967,2]
[337906987,1726203041946,-1293.0,0.00012967,2]
[337906989,1726203041956,-1216.35,0.00012967,2]
[337906991,1726203041965,-2874.21,0.00012967,2]
[337906993,1726203041974,-1469.45,0.00012967,2]
[337906995,1726203041983,-4541.99,0.00012967,2]
[337906997,1726203041993,-2744.23,0.00012967,2]
[337906999,1726203042002,-1012.89,0.00012967,2]
[337907001,1726203042011,-500.0,0.00012967,2]
[337907003,1726203042020,-3281.84,0.00012967,2]
[337907005,1726203042029,-592.56,0.00012967,2]
[337907007,1726203042038,-500.0,0.00012967,2]
[337907009,1726203042047,-500.0,0.00012967,2]
[337907011,1726203042056,-500.0,0.00012967,2]
[337907012,1726203042065,-500.0,0.00012967,2]
[337907014,1726203042074,-500.0,0.00012967,2]
[337907035,1726203042256,-1183.63,0.00012967,2]
[337907038,1726203042291,-500.0,0.00012967,2]
[337907040,1726203042300,-1044.04,0.00012967,2]
[337907042,1726203042310,-2378.49,0.00012967,2]
[337907044,1726203042319,-2461.27,0.00012967,2]
[337907047,1726203042328,-500.0,0.00012967,2]
[337907048,1726203042337,-500.0,0.00012967,2]
[337907050,1726203042346,-500.0,0.00012967,2]
[337907052,1726203042356,-527.48,0.00012967,2]
[337907054,1726203042365,-579.89,0.00012967,2]
[337907056,1726203042374,-765.12,0.00012967,2]
[337907058,1726203042384,-1008.47,0.00012967,2]
[337907060,1726203042394,-1418.96,0.00012967,2]
[337907062,1726203042403,-500.0,0.00012967,2]
[337907064,1726203042412,-2605.26,0.00012967,2]
[337907066,1726203042422,-1002.26,0.00012967,2]
[337907068,1726203042431,-1061.1,0.00012967,2]
[337907070,1726203042440,-775.29,0.00012967,2]
[337907072,1726203042453,-3028.67,0.00012967,2]
[337907074,1726203042462,-998.49,0.00012967,2]
[337907076,1726203042471,-1856.55,0.00012967,2]
[337907078,1726203042481,-500.0,0.00012967,2]
[337907079,1726203042490,-500.0,0.00012967,2]
[337907081,1726203042499,-944.17,0.00012967,2]
[337907084,1726203042508,-1723.21,0.00012967,2]
[337907086,1726203042518,-1718.81,0.00012967,2]
[337907088,1726203042527,-969.41,0.00012967,2]
[337907089,1726203042536,-527.06,0.00012967,2]
[337907092,1726203042546,-3945.37,0.00012967,2]
[337907094,1726203042555,-747.12,0.00012967,2]
[337907096,1726203042564,-2049.8,0.00012967,2]
[337907098,1726203042574,-2974.3,0.00012967,2]
[337907100,1726203042584,-500.0,0.00012967,2]
[337907102,1726203042593,-2702.11,0.00012967,2]
[337907104,1726203042603,-766.03,0.00012968,2]
[337907106,1726203042612,-594.78385868,0.00012968,2]
[337907108,1726203042621,-500.0,0.00012968,2]
[337907110,1726203042631,-500.0,0.00012968,2]
[337907112,1726203042640,-770.92,0.00012968,2]
[337907114,1726203042650,-500.0,0.00012968,2]
[337907116,1726203042659,-576.59,0.00012968,2]
[337907118,1726203042669,-1212.23,0.00012968,2]
[337907120,1726203042679,-1125.29,0.00012968,2]
[337907122,1726203042690,-500.0,0.00012968,2]
[337907124,1726203042699,-500.0,0.00012968,2]
[337907126,1726203042708,-500.0,0.00012968,2]
[337907128,1726203042718,-500.0,0.00012968,2]
[337907130,1726203042727,-2476.48,0.00012968,2]
[337907132,1726203042737,-3685.7,0.00012968,2]
[337907134,1726203042746,-2212.74,0.00012968,2]
[337907136,1726203042755,-2167.31,0.00012968,2]
[337907138,1726203042764,-1111.96,0.00012968,2]
[337907140,1726203042774,-500.0,0.00012968,2]
[337907142,1726203042783,-3797.53,0.00012968,2]
[337907145,1726203042793,-4347.48,0.00012968,2]
[337907146,1726203042802,-5509.71,0.00012968,2]
[337907148,1726203042811,-3636.99,0.00012968,2]
[337907150,1726203042821,-4309.74,0.00012968,2]
[337907152,1726203042830,-1107.92,0.00012968,2]
[337907155,1726203042839,-500.0,0.00012968,2]
[337907158,1726203042848,-3797.37,0.00012968,2]
[337907161,1726203042857,-4700.21,0.00012968,2]
[337907163,1726203042867,-500.0,0.00012968,2]
[337907165,1726203042876,-1569.89,0.00012968,2]
[337907168,1726203042886,-2514.1,0.00012968,2]
[337907170,1726203042895,-500.0,0.00012968,2]
[337907172,1726203042905,-500.0,0.00012968,2]
[337907174,1726203042914,-5328.55,0.00012968,2]
[337907176,1726203042924,-500.0,0.00012973,2]
[337907178,1726203042935,-360.67126663,0.00012977,2]
[337907180,1726203042944,-528.0,0.00012981,2]
[337907182,1726203042954,-1669.27,0.00013,2]
[337907184,1726203042964,-357.7,0.00013,2]
[337907186,1726203042973,-357.7,0.00013,2]
[337907188,1726203042982,-357.7,0.00013,2]
[337907190,1726203042991,-357.7,0.00013,2]
[337907191,1726203043001,-725.31695494,0.00013,2]
[337907193,1726203043011,-1100.0,0.00013,2]
[337907195,1726203043020,-151.36511611,0.00013009,2]
[337907197,1726203043030,-1547.0,0.00013023,2]
[337907199,1726203043039,-624.0,0.00013023,2]
[337907201,1726203043048,-448.0,0.00013023,2]
[337907203,1726203043058,-1261.0,0.00013023,2]
[337907205,1726203043068,-863.208,0.00013023,2]
[337907207,1726203043077,-558.0,0.00013023,2]
[337907209,1726203043087,-932.0,0.00013023,2]
[337907211,1726203043096,-150.0,0.00013023,2]
[337907213,1726203043106,-1901.0,0.00013023,2]
[337907215,1726203043116,-553.0,0.00013023,2]
[337907217,1726203043126,-806.0,0.00013023,2]
[337907219,1726203043135,-1125.0,0.00013023,2]
[337907221,1726203043145,-3344.0,0.00013023,2]
[337907223,1726203043155,-248.0,0.00013023,2]
[337907225,1726203043164,-1146.0,0.00013023,2]
[337907227,1726203043174,-150.0,0.00013023,2]
[337907229,1726203043184,-5862.0,0.00013023,2]
[337907231,1726203043193,-150.0,0.00013023,2]
[337907233,1726203043202,-9312.0,0.00013023,2]
[337907235,1726203043211,-150.0,0.00013023,2]
[337907237,1726203043221,-314392.37156284,0.0001304,2]
[337907239,1726203043231,-150.0,0.00013041,2]
[337907241,1726203043240,-715.16,0.000131,2]
[337907243,1726203043249,-357.7,0.000131,2]
[337907245,1726203043259,-150.0,0.000131,2]
[337907247,1726203043268,-357.7,0.000131,2]
[337907249,1726203043279,-750.5,0.000131,2]
[337907251,1726203043289,-150.0,0.000131,2]
[337907253,1726203043299,-427.8,0.000131,2]
[337907255,1726203043308,-150.0,0.000131,2]
[337907257,1726203043318,-150.0,0.000131,2]
[337907259,1726203043328,-427.8,0.000131,2]
[337907261,1726203043338,-151.46,0.000131,2]
[337907263,1726203043347,-357.7,0.000131,2]
[337907265,1726203043357,-752.67,0.000131,2]
[337907267,1726203043366,-441.63,0.000131,2]
[337907269,1726203043376,-752.75,0.000131,2]
[337907271,1726203043385,-150.0,0.000131,2]
[337907273,1726203043395,-357.7,0.000131,2]
[337907275,1726203043404,-427.8,0.000131,2]
[337907277,1726203043414,-1475.68,0.000131,2]
[337907279,1726203043423,-357.7,0.000131,2]
[337907281,1726203043434,-150.0,0.000131,2]
[337907283,1726203043443,-150.0,0.000131,2]
[337907285,1726203043456,-150.0,0.000131,2]
[337907287,1726203043466,-150.0,0.000131,2]
[337907289,1726203043476,-357.66,0.000131,2]
[337907291,1726203043485,-150.0,0.000131,2]
[337907293,1726203043496,-150.0,0.000131,2]
[337907295,1726203043506,-150.0,0.000131,2]
[337907297,1726203043515,-313.18,0.000131,2]
[337907299,1726203043525,-427.8,0.000131,2]
[337907301,1726203043534,-357.66,0.000131,2]
[337907303,1726203043544,-752.75,0.000131,2]
[337907305,1726203043553,-150.0,0.000131,2]
[337907307,1726203043563,-357.18,0.000131,2]
[337907309,1726203043572,-150.0,0.000131,2]
[337907311,1726203043583,-150.0,0.000131,2]
[337907313,1726203043592,-427.8,0.000131,2]
[337907315,1726203043602,-150.0,0.000131,2]
[337907317,1726203043612,-150.0,0.000131,2]
[337907318,1726203043622,-752.75,0.000131,2]
[337907320,1726203043632,-752.75,0.000131,2]
[337907322,1726203043642,-357.7,0.000131,2]
[337907324,1726203043651,-427.8,0.000131,2]
[337907326,1726203043661,-150.0,0.000131,2]
[337907328,1726203043671,-150.0,0.000131,2]
[337907330,1726203043680,-150.0,0.000131,2]
[337907333,1726203043691,-150.0,0.000131,2]
[337907335,1726203043700,-150.0,0.000131,2]
[337907336,1726203043710,-357.7,0.000131,2]
[337907339,1726203043719,-752.75,0.000131,2]
[337907341,1726203043729,-357.7,0.000131,2]
[337907343,1726203043738,-752.75,0.000131,2]
[337907344,1726203043748,-150.0,0.000131,2]
[337907346,1726203043757,-150.0,0.000131,2]
[337907349,1726203043767,-304.72,0.000131,2]
[337907351,1726203043777,-150.0,0.000131,2]
[337907353,1726203043787,-794.61,0.000131,2]
[337907355,1726203043796,-752.75,0.000131,2]
[337907356,1726203043806,-962.93,0.000131,2]
[337907358,1726203043815,-427.8,0.000131,2]
[337907360,1726203043825,-150.0,0.000131,2]
[337907362,1726203043835,-150.0,0.000131,2]
[337907364,1726203043845,-357.7,0.000131,2]
[337907366,1726203043854,-401.53,0.000131,2]
[337907368,1726203043863,-300.0,0.000131,2]
[337907370,1726203043873,-752.75,0.000131,2]
[337907372,1726203043883,-855.46,0.000131,2]
[337907374,1726203043892,-357.7,0.000131,2]
[337907376,1726203043902,-150.0,0.000131,2]
[337907378,1726203043911,-150.0,0.000131,2]
[337907380,1726203043921,-150.0,0.000131,2]
[337907382,1726203043930,-300.0,0.000131,2]
[337907384,1726203043941,-300.0,0.000131,2]
[337907386,1726203043950,-150.0,0.000131,2]
[337907388,1726203043960,-752.75,0.000131,2]
[337907390,1726203043969,-150.0,0.000131,2]
[337907392,1726203043979,-357.7,0.000131,2]
[337907394,1726203043988,-427.8,0.000131,2]
[337907396,1726203043998,-752.75,0.000131,2]
[337907398,1726203044008,-357.7,0.000131,2]
[337907400,1726203044017,-150.0,0.000131,2]
[337907402,1726203044027,-427.8,0.000131,2]
[337907404,1726203044036,-150.0,0.000131,2]
[337907406,1726203044046,-315.08,0.000131,2]
[337907408,1726203044055,-150.0,0.000131,2]
[337907410,1726203044064,-150.0,0.000131,2]
[337907412,1726203044074,-150.0,0.000131,2]
[337907413,1726203044083,-150.0,0.000131,2]
[337907416,1726203044094,-1365.51,0.000131,2]
[337907418,1726203044105,-357.7,0.000131,2]
[337907420,1726203044116,-752.75,0.000131,2]
[337907422,1726203044127,-357.7,0.000131,2]
[337907424,1726203044138,-752.75,0.000131,2]
[337907426,1726203044148,-150.0,0.000131,2]
[337907428,1726203044158,-357.7,0.000131,2]
[337907431,1726203044170,-150.0,0.000131,2]
[337907433,1726203044181,-150.0,0.000131,2]
[337907435,1726203044191,-150.0,0.000131,2]
[337907437,1726203044200,-150.0,0.000131,2]
[337907439,1726203044213,-427.8,0.000131,2]
[337907441,1726203044222,-357.1,0.000131,2]
[337907443,1726203044231,-1547.32,0.000131,2]
[337907445,1726203044240,-752.75,0.000131,2]
[337907447,1726203044251,-150.0,0.000131,2]
[337907449,1726203044262,-150.0,0.000131,2]
[337907452,1726203044273,-150.8,0.000131,2]
[337907454,1726203044282,-357.7,0.000131,2]
[337907456,1726203044291,-150.0,0.000131,2]
[337907458,1726203044300,-427.8,0.000131,2]
[337907460,1726203044310,-506.13918,0.0001311,2]
[337907462,1726203044318,-1762.26916618,0.00013139,2]
[337907464,1726203044328,-151.0,0.00013151,2]
[337907466,1726203044337,-150.0,0.00013154,2]
[337907468,1726203044346,-487.03368496,0.00013199,2]
[337907470,1726203044355,-752.75,0.000132,2]
[337907472,1726203044364,-150.0,0.000132,2]
[337907474,1726203044373,-752.75,0.000132,2]
[337907476,1726203044382,-855.42,0.000132,2]
[337907478,1726203044391,-357.7,0.000132,2]
[337907480,1726203044400,-200171.51460393,0.000132,2]
[337907482,1726203044409,-290.63,0.000132,2]
[337907484,1726203044419,-422.42,0.000132,2]
[337907486,1726203044428,-357.7,0.000132,2]
[337907488,1726203044438,-151.47,0.000132,2]
[337907490,1726203044449,-212.78,0.000132,2]
[337907492,1726203044458,-150.0,0.000132,2]
[337907493,1726203044467,-150.58,0.000132,2]
[337907494,1726203044476,-150.34,0.000132,2]
[337907495,1726203044486,-854.96,0.000132,2]
[337907496,1726203044496,-150.42,0.000132,2]
[337907497,1726203044506,-752.75,0.000132,2]
[337907498,1726203044515,-150.0,0.000132,2]
[337907499,1726203044525,-752.75,0.000132,2]
[337907500,1726203044535,-427.8,0.000132,2]
[337907501,1726203044545,-357.7,0.000132,2]
[337907502,1726203044554,-150.0,0.000132,2]
[337907503,1726203044564,-427.8,0.000132,2]
[337907504,1726203044573,-677.26,0.000132,2]
[337907505,1726203044583,-150.0,0.000132,2]
[337907506,1726203044592,-357.7,0.000132,2]
[337907507,1726203044601,-752.75,0.000132,2]
[337907509,1726203044611,-150.0,0.000132,2]
[337907518,1726203044684,-150.0,0.000132,2]
[337907520,1726203044693,-427.8,0.000132,2]
[337907522,1726203044703,-752.75,0.000132,2]
[337907524,1726203044712,-357.7,0.000132,2]
[337907526,1726203044721,-150.0,0.000132,2]
[337907528,1726203044730,-752.67,0.000132,2]
[337907530,1726203044740,-357.7,0.000132,2]
[337907532,1726203044749,-150.0,0.000132,2]
[337907534,1726203044758,-427.8,0.000132,2]
[337907536,1726203044768,-300.58,0.000132,2]
[337907538,1726203044778,-150.0,0.000132,2]
[337907540,1726203044789,-300.0,0.000132,2]
[337907542,1726203044798,-752.67,0.000132,2]
[337907544,1726203044807,-150.0,0.000132,2]
[337907546,1726203044816,-357.7,0.000132,2]
[337907548,1726203044827,-151.37,0.000132,2]
[337907550,1726203044837,-427.8,0.000132,2]
[337907552,1726203044848,-150.0,0.000132,2]
[337907555,1726203044858,-301.25,0.000132,2]
[337907557,1726203044869,-858.7,0.000132,2]
[337907559,1726203044879,-752.67,0.000132,2]
[337907561,1726203044890,-357.7,0.000132,2]
[337907563,1726203044901,-752.67,0.000132,2]
[337907565,1726203044911,-150.0,0.000132,2]
[337907567,1726203044920,-150.0,0.000132,2]
[337907569,1726203044932,-300.63,0.000132,2]
[337907571,1726203044943,-150.0,0.000132,2]
[337907573,1726203044952,-150.0,0.000132,2]
[337907575,1726203044961,-150.0,0.000132,2]
[337907577,1726203044970,-151.15,0.000132,2]
[337907579,1726203044981,-431.81,0.000132,2]
[337907581,1726203044990,-514.77,0.000132,2]
[337907583,1726203044999,-757.23,0.000132,2]
[337907585,1726203045007,-357.66,0.000132,2]
[337907587,1726203045017,-302.28,0.000132,2]
[337907589,1726203045026,-1006.14,0.000132,2]
[337907590,1726203045035,-396.0,0.00013214,2]
[337907592,1726203045044,-807.58699259,0.00013237,2]
[337907594,1726203045053,-4673.3564837,0.00013237,2]
[337907596,1726203045062,-9651.7479787,0.00013237,2]
[337907598,1726203045071,-12136.18651,0.00013237,2]
[337907600,1726203045080,-646.3820638,0.00013237,2]